bitfinex-derivatives/quotes_ETHF0:USTF0_20250902
["timestamp","ask_amount","ask_price","bid_price","bid_amount"]
[1756803299931,3.897,4401.4,4400.6,0.2969]
[1756803300725,4.128,4401.4,4400.6,0.2969]
[1756803300930,0.1891,4400.0,4399.9,0.7036]
[1756803301128,0.1891,4400.1,4400.0,0.2969]
[1756803301334,0.1891,4400.1,4400.0,0.7036]
[1756803302437,0.3074,4400.5,4400.1,0.2969]
[1756803302635,0.6892,4400.5,4400.4,0.5013]
[1756803303135,4.6892,4400.5,4399.6,0.2969]
[1756803303337,0.6892,4399.7,4399.6,0.7036]
[1756803303941,0.3818,4399.7,4399.6,0.7036]
[1756803304144,0.6892,4399.7,4399.6,0.5013]
[1756803305735,0.3074,4399.6,4398.8,0.2969]
[1756803305932,0.3818,4398.9,4398.8,0.7036]
[1756803306836,0.6892,4398.9,4398.8,0.7036]
[1756803307037,0.3818,4398.9,4398.8,0.7036]
[1756803307633,0.1891,4398.9,4398.8,0.7036]
[1756803308439,0.3818,4398.9,4398.5,32.74]
[1756803308637,0.6892,4398.8,4398.5,0.2969]
[1756803308940,3.2078,4399.2,4398.3,0.231]
[1756803308941,0.3074,4398.7,4398.6,0.1985]
[1756803309140,0.7039,4398.7,4398.6,0.4934]
[1756803310544,0.7039,4398.7,4398.1,0.2949]
[1756803310737,0.7039,4398.7,4398.6,0.1985]
[1756803310943,0.7039,4398.7,4398.6,0.4934]
[1756803311754,0.4011,4398.7,4398.6,0.6855]
[1756803312148,0.4011,4398.7,4398.6,0.4934]
[1756803312354,0.7039,4398.7,4398.1,0.2949]
[1756803313156,0.7039,4398.7,4398.6,0.4934]
[1756803313754,0.4011,4398.7,4398.6,0.6855]
[1756803314062,0.7039,4398.7,4398.6,0.6855]
[1756803314357,0.7039,4398.7,4398.6,0.4934]
[1756803314756,0.7039,4398.7,4398.6,0.6855]
[1756803314952,0.4011,4398.7,4398.6,0.6855]
[1756803315155,0.7039,4398.7,4398.6,0.4934]
[1756803318154,3.9117,4398.7,4398.1,0.2949]
[1756803319771,0.1997,4397.5,4397.4,0.6855]
[1756803320064,0.4011,4397.5,4397.4,0.6855]
[1756803320257,0.1997,4397.5,4397.4,0.6855]
[1756803321864,0.7039,4397.5,4397.4,0.2949]
[1756803322067,0.7039,4397.5,4397.4,0.6855]
[1756803323967,0.4011,4397.5,4397.4,0.6855]
[1756803324169,0.7039,4398.0,4397.9,0.1985]
[1756803324370,0.7039,4398.0,4397.9,0.4934]
[1756803324972,0.4011,4398.0,4397.9,0.6855]
[1756803325277,3.2078,4398.2,4398.1,0.6855]
[1756803325668,3.4075,4398.2,4398.1,0.6855]
[1756803325874,3.6089,4398.2,4398.1,0.6855]
[1756803326273,3.2078,4398.2,4398.1,0.6855]
[1756803326672,3.4075,4398.2,4398.1,0.6855]
[1756803327364,3.9117,4398.2,4398.1,0.2949]
[1756803327570,3.6089,4398.2,4397.6,0.231]
[1756803327878,0.3028,4398.1,4397.7,0.2949]
[1756803328076,0.7039,4398.1,4398.0,0.4934]
[1756803329071,0.4011,4398.1,4398.0,0.6855]
[1756803329278,0.1997,4398.1,4398.0,0.6855]
[1756803330779,0.7039,4398.1,4398.0,0.6855]
[1756803333781,0.4011,4398.1,4398.0,0.6855]
[1756803334482,0.7039,4398.1,4398.0,0.2949]
[1756803334683,0.7039,4398.1,4398.0,0.4934]
[1756803334979,0.4011,4398.1,4398.0,0.6855]
[1756803335483,3.2078,4398.2,4398.1,0.2949]
[1756803335782,3.4075,4398.2,4398.1,0.2949]
[1756803336084,3.4075,4398.2,4398.1,0.6855]
[1756803336981,3.2078,4398.2,4398.1,0.6855]
[1756803337674,0.1870151,4398.2,4398.1,0.6855]
[1756803339980,0.1870151,4398.2,4398.1,4.91287]
[1756803340584,3.2078,4399.1,4399.0,0.8097]
[1756803340885,3.59221721,4399.1,4399.0,0.6891]
[1756803341188,3.78281721,4399.1,4399.0,0.6891]
[1756803341381,3.78281721,4399.1,4398.1,0.2963]
[1756803341382,8.08201721,4399.1,4398.1,0.2963]
[1756803341582,0.388,4398.2,4398.1,0.6891]
[1756803341776,0.57501721,4398.2,4398.1,0.6891]
[1756803342384,0.38441721,4398.2,4398.1,0.6891]
[1756803342597,0.18701721,4398.2,4398.1,0.6891]
[1756803343378,3.2078,4398.6,4398.1,0.3928]
[1756803343586,3.2078,4398.6,4398.4,0.6891]
[1756803343587,0.18700504,4398.5,4398.4,0.6891]
[1756803343788,0.57500504,4398.5,4398.4,0.6891]
[1756803344486,0.57501502,4398.5,4398.4,0.6891]
[1756803345687,0.38441502,4398.5,4398.4,0.6891]
[1756803345881,0.18701502,4398.5,4398.4,0.6891]
[1756803348783,0.38441502,4398.5,4398.4,0.6891]
[1756803349086,0.87421502,4398.5,4398.4,0.6891]
[1756803349284,0.6872,4398.4,4398.3,0.231]
[1756803349484,0.57501502,4398.4,4398.3,0.9201]
[1756803349678,0.38441502,4398.4,4398.3,0.9201]
[1756803349888,0.18701502,4398.4,4398.3,0.9201]
[1756803350791,0.38441502,4398.4,4398.3,0.9201]
[1756803351790,0.18701502,4398.4,4398.3,0.9201]
[1756803354290,0.1869544,4398.4,4398.3,0.9201]
[1756803355192,0.3843544,4398.4,4398.3,0.6891]
[1756803355386,0.3843544,4398.4,4398.3,0.9201]
[1756803355783,0.1869544,4398.4,4398.3,0.9201]
[1756803360200,0.1869544,4398.4,4398.3,41.7201]
[1756803360893,0.3843544,4398.4,4398.3,0.6891]
[1756803361094,0.3843544,4398.4,4398.2,0.5273]
[1756803361095,0.6872,4398.3,4398.2,0.5273]
[1756803361393,0.388,4398.0,4397.9,0.5273]
[1756803361594,0.2992,4397.9,4397.5,0.231]
[1756803361801,0.6872,4397.4,4397.3,3.6391]
[1756803361994,0.8741544,4397.4,4397.3,3.6391]
[1756803362190,0.8741544,4397.4,4397.3,3.7044]
[1756803362995,0.8741544,4397.4,4397.3,0.4966]
[1756803363295,0.2992,4397.3,4396.8,32.75]
[1756803363496,0.388,4397.0,4396.9,0.9201]
[1756803363902,0.57509712,4397.0,4396.9,0.9201]
[1756803364100,0.38449712,4397.0,4396.9,0.9201]
[1756803364298,0.1871112,4397.0,4396.9,0.9201]
[1756803367201,0.3845112,4397.0,4396.9,0.9201]
[1756803368506,0.1871112,4397.0,4396.9,0.9201]
[1756803369212,0.3845112,4397.0,4396.9,0.9201]
[1756803369509,0.5843112,4397.0,4396.9,0.9201]
[1756803370110,0.5843112,4397.0,4396.9,0.6891]
[1756803370410,0.5843112,4397.0,4396.9,0.9201]
[1756803371510,0.3845112,4397.0,4396.9,0.9201]
[1756803371706,0.1871112,4397.0,4396.9,0.9201]
[1756803372714,0.3865112,4397.0,4396.9,0.9201]
[1756803373012,0.1871112,4397.0,4396.9,0.9201]
[1756803373609,0.8759112,4397.0,4396.9,0.9201]
[1756803374016,0.5863112,4397.0,4396.9,0.9201]
[1756803374514,0.38475991,4397.0,4396.9,0.9201]
[1756803376706,0.38475991,4397.0,4396.9,0.4966]
[1756803376707,0.87415991,4397.0,4396.9,0.4966]
[1756803376915,0.87415991,4397.0,4396.9,0.5273]
[1756803377104,0.87415991,4397.0,4396.9,0.2963]
[1756803377309,0.6888,4396.9,4396.8,0.231]
[1756803377611,0.87415991,4396.9,4396.8,0.231]
[1756803377912,0.87415991,4396.9,4396.8,0.7316]
[1756803378814,3.2078,4397.1,4396.9,0.3089]
[1756803379021,0.6888,4397.5,4397.4,0.702]
[1756803379317,0.87415774,4397.5,4397.4,0.702]
[1756803380418,0.87415774,4397.5,4397.4,0.5006]
[1756803381713,0.87415774,4397.5,4397.4,0.3089]
[1756803382013,0.87415774,4397.5,4397.1,0.3089]
[1756803382014,0.58455774,4397.5,4397.1,0.3089]
[1756803382215,0.3992,4397.2,4397.1,0.702]
[1756803382417,0.58455774,4397.2,4397.1,0.702]
[1756803382615,0.87415774,4397.2,4397.1,0.5006]
[1756803383319,0.87415774,4397.2,4397.1,0.702]
[1756803384424,0.58455774,4397.2,4397.1,0.702]
[1756803385126,0.3992,4397.2,4397.1,0.702]
[1756803385326,0.58476841,4397.2,4397.1,0.702]
[1756803385526,0.87436841,4397.2,4397.1,0.5006]
[1756803385728,0.87437349,4397.2,4397.1,0.5006]
[1756803386220,0.87437349,4397.2,4396.7,0.3089]
[1756803386421,0.6888,4396.7,4396.6,0.3931]
[1756803386621,0.87437349,4396.7,4396.6,0.3931]
[1756803386815,0.87437349,4396.7,4396.6,0.5006]
[1756803387425,0.3992,4396.3,4396.2,0.6241]
[1756803387625,0.58477349,4396.3,4396.2,0.933]
[1756803388026,0.87437349,4396.3,4396.2,0.702]
[1756803388824,0.87464552,4396.3,4396.2,0.702]
[1756803389218,0.87464552,4396.3,4395.4,0.3089]
[1756803389219,0.2896,4396.2,4395.4,0.3089]
[1756803389417,0.1994,4395.6,4395.5,0.933]
[1756803389628,0.38524552,4395.6,4395.5,0.933]
[1756803390024,0.18584552,4395.6,4395.5,1.055]
[1756803390221,0.18584552,4396.1,4395.5,0.7461]
[1756803390423,0.1994,4395.7,4395.6,0.702]
[1756803390623,0.38524552,4395.7,4395.6,0.702]
[1756803394531,0.18584552,4395.7,4395.6,0.702]
[1756803395433,3.2078,4396.6,4395.7,0.3089]
[1756803395636,3.2078,4396.6,4395.6,0.3931]
[1756803395637,0.18566117,4396.5,4396.4,0.3931]
[1756803395834,0.38506042,4396.5,4396.4,0.702]
[1756803396432,0.87446042,4396.5,4396.4,0.702]
[1756803396737,0.87446042,4396.5,4396.4,0.5006]
[1756803396927,0.87445587,4396.5,4396.4,0.3089]
[1756803397128,0.58485587,4396.5,4396.4,0.1917]
[1756803397332,0.58485587,4396.5,4396.4,0.702]
[1756803397533,0.18565587,4396.5,4396.4,0.702]
[1756803397733,0.38505587,4396.5,4396.4,0.702]
[1756803398229,0.18565587,4396.5,4396.4,0.702]
[1756803398634,0.38505587,4396.5,4396.4,0.702]
[1756803398834,0.89305587,4396.5,4396.4,0.702]
[1756803399134,0.89305587,4396.5,4396.4,0.5006]
[1756803399842,0.89305587,4396.5,4395.9,0.2974]
[1756803400141,0.2021,4395.9,4395.8,0.685]
[1756803400442,0.38775587,4395.9,4395.8,0.916]
[1756803401239,0.18565587,4395.9,4395.8,0.685]
[1756803401631,0.4083,4396.2,4396.1,0.3876]
[1756803401834,0.5971023,4396.2,4396.1,0.685]
[1756803406334,0.9053023,4396.2,4396.1,0.4912]
[1756803406530,0.90536078,4396.2,4396.1,0.4912]
[1756803407142,0.9053608,4396.2,4396.1,0.4912]
[1756803407642,0.9053608,4396.2,4396.1,0.685]
[1756803407843,0.5971608,4396.2,4396.1,0.685]
[1756803408944,0.9053608,4396.2,4396.1,0.4912]
[1756803409240,0.5971608,4396.2,4396.1,0.685]
[1756803409638,0.1888608,4396.2,4396.1,4.916]
[1756803409836,0.3082,4397.5,4396.1,8.05387]
[1756803410032,0.59713638,4397.4,4397.3,0.685]
[1756803410337,0.90533638,4397.4,4397.3,0.2974]
[1756803410534,0.3082,4397.2,4396.6,0.6186]
[1756803410737,0.3082,4397.2,4396.7,0.2974]
[1756803410738,3.39663638,4397.1,4396.7,0.2974]
[1756803411038,0.39093638,4397.0,4396.9,0.685]
[1756803415042,0.18883638,4397.0,4396.9,0.685]
[1756803417147,3.2078,4397.1,4397.0,0.8011]
[1756803417444,3.39674759,4397.1,4397.0,0.8011]
[1756803419438,4.11324759,4397.1,4397.0,0.2974]
[1756803419644,4.11324759,4397.1,4396.6,40.8]
[1756803419645,0.5103,4397.0,4396.9,0.4912]
[1756803419945,0.39104759,4397.0,4396.9,0.685]
[1756803421442,0.18894759,4397.0,4396.9,0.685]
[1756803426545,3.2078,4397.8,4396.9,0.685]
[1756803426546,3.2078,4397.8,4397.0,0.1161]
[1756803426745,3.2078,4397.8,4397.7,0.685]
[1756803426945,3.2078,4397.8,4397.7,0.916]
[1756803427250,3.4099,4397.8,4397.7,0.916]
[1756803427440,3.7181,4397.8,4397.7,0.916]
[1756803427643,3.4099,4397.8,4397.7,0.916]
[1756803427839,3.7181,4397.8,4397.7,0.916]
[1756803428042,3.9243,4397.8,4397.7,0.916]
[1756803429552,3.4099,4397.8,4397.7,0.916]
[1756803429753,3.8993,4397.8,4397.7,0.916]
[1756803431350,3.4099,4397.8,4397.7,0.916]
[1756803431558,1.33549523,4399.5,4398.3,0.3902]
[1756803431559,0.6783,4398.4,4398.3,0.3902]
[1756803431750,0.6783,4398.4,4398.3,0.9054]
[1756803435347,0.4763,4398.8,4398.7,0.3902]
[1756803435553,0.4763,4398.8,4398.7,0.6744]
[1756803436356,0.6783,4398.8,4398.7,0.6744]
[1756803437354,0.1889,4398.8,4398.7,0.6744]
[1756803437753,0.6783,4398.8,4398.7,0.6744]
[1756803438060,0.6783,4398.8,4398.7,0.7126]
[1756803438554,0.6783,4398.8,4398.2,3.2078]
[1756803438555,0.2874,4398.7,4398.2,3.2078]
[1756803438857,3.3236,4399.0,4398.2,3.2078]
[1756803438858,0.6783,4398.3,4398.2,3.2078]
[1756803439068,0.86347337,4398.3,4398.2,3.6894]
[1756803440159,0.86347337,4398.3,4398.2,0.4816]
[1756803440755,0.86347337,4398.3,4398.2,0.1974]
[1756803440962,0.86347337,4398.3,4398.1,0.231]
[1756803441161,0.86347337,4398.2,4398.1,0.4284]
[1756803441463,0.57607337,4398.2,4397.8,0.2842]
[1756803441762,0.6783,4398.0,4397.9,0.9054]
[1756803441958,0.86347337,4398.0,4397.9,0.9054]
[1756803442152,0.37407337,4398.0,4397.9,0.9054]
[1756803442359,0.2874,4398.4,4398.0,0.2842]
[1756803442662,0.6783,4398.4,4398.3,0.6744]
[1756803442860,0.86354117,4398.4,4398.3,0.6744]
[1756803444468,0.86356319,4398.4,4398.3,0.6744]
[1756803445662,0.66156319,4398.4,4398.3,0.6744]
[1756803445862,0.37416319,4398.4,4398.3,0.6744]
[1756803447763,0.66156319,4398.4,4398.3,0.6744]
[1756803447964,0.86356319,4398.4,4398.3,0.6744]
[1756803448166,0.86359802,4398.4,4398.3,0.6744]
[1756803448466,0.86359802,4398.4,4398.3,0.4816]
[1756803449267,0.86359802,4398.4,4398.3,0.1974]
[1756803449468,0.57619802,4398.4,4397.8,0.2842]
[1756803449665,0.6783,4398.0,4397.9,0.7126]
[1756803449965,0.6783,4397.1,4397.0,0.1974]
[1756803450168,0.86359802,4397.1,4397.0,0.1974]
[1756803451374,0.57619802,4397.1,4396.7,3.4388]
[1756803451568,0.3909,4396.9,4396.8,0.4816]
[1756803451774,0.86359802,4396.9,4396.8,0.7126]
[1756803451974,0.86359802,4396.9,4396.8,0.231]
[1756803452370,0.86359802,4396.9,4396.8,0.1974]
[1756803453873,0.2874,4396.8,4396.7,3.2078]
[1756803454080,0.6783,4396.4,4396.3,0.2842]
[1756803454286,0.86359802,4396.4,4396.3,0.7126]
[1756803454677,0.2874,4396.3,4396.1,40.8]
[1756803454983,0.2874,4396.3,4396.0,3.2078]
[1756803454984,0.6783,4396.3,4396.2,0.9054]
[1756803455183,0.8637157,4396.3,4396.2,0.9054]
[1756803455373,0.6783,4396.3,4396.2,0.9054]
[1756803455882,0.86367071,4396.3,4396.2,0.9054]
[1756803456185,0.6783,4396.3,4396.2,0.9054]
[1756803457788,0.86200142,4396.3,4396.2,0.9054]
[1756803457987,0.86200142,4396.3,4396.2,0.4284]
[1756803458181,0.2874,4396.2,4395.6,0.2842]
[1756803458387,0.6783,4396.2,4396.1,0.6744]
[1756803458586,0.86193747,4396.2,4396.1,0.6744]
[1756803458887,0.86194147,4396.2,4396.1,0.4816]
[1756803459382,0.86194147,4396.2,4395.7,41.031]
[1756803459383,0.86194147,4396.2,4395.8,0.2939]
[1756803459584,3.2078,4396.4,4396.0,0.2069]
[1756803459585,0.18364147,4396.1,4396.0,0.2069]
[1756803459788,0.58714147,4396.1,4396.0,0.6896]
[1756803460390,0.87864147,4396.1,4396.0,0.6896]
[1756803460589,0.4035,4395.8,4395.7,41.3249]
[1756803460889,0.695,4395.8,4395.7,41.3249]
[1756803461784,0.2046,4395.8,4395.7,41.3249]
[1756803462086,0.4961,4395.8,4395.7,0.9206]
[1756803462286,0.695,4395.8,4395.7,0.9206]
[1756803464480,0.695,4395.8,4395.7,0.231]
[1756803465095,0.695,4395.8,4395.7,0.4379]
[1756803465281,0.2275,4395.7,4394.6,0.2939]
[1756803465483,0.695,4394.7,4394.6,0.6896]
[1756803465787,0.695,4394.7,4394.6,0.2069]
[1756803467091,0.695,4394.7,4394.3,0.2939]
[1756803467497,0.695,4394.7,4394.1,0.33568464]
[1756803467681,0.695,4394.7,4394.2,0.2939]
[1756803468084,0.695,4394.7,4394.1,0.33568464]
[1756803468290,0.695,4394.7,4394.3,0.2939]
[1756803468485,0.695,4394.7,4394.6,0.2069]
[1756803468688,0.695,4394.7,4394.6,0.5008]
[1756803470395,0.695,4394.7,4394.6,0.6896]
[1756803470587,0.2046,4394.7,4394.6,0.6896]
[1756803470890,3.2078,4394.8,4394.7,0.6896]
[1756803471194,3.7039,4394.8,4394.7,0.6896]
[1756803471493,3.2078,4394.8,4394.7,0.6896]
[1756803471999,3.4124,4394.8,4394.7,0.6896]
[1756803472489,3.2078,4394.8,4394.7,0.6896]
[1756803472992,3.4124,4394.8,4394.7,0.6896]
[1756803473694,3.2078,4394.8,4394.7,0.6896]
[1756803475294,3.4124,4394.8,4394.7,0.6896]
[1756803476090,3.2078,4394.8,4394.7,0.6896]
[1756803476796,3.4124,4394.8,4394.7,0.6896]
[1756803477792,3.9028,4394.8,4394.7,0.6896]
[1756803479092,3.9028,4394.8,4394.7,0.9206]
[1756803479797,3.4124,4394.8,4394.7,0.9206]
[1756803480095,3.9028,4394.8,4394.7,0.9206]
[1756803485901,3.9028,4394.8,4394.7,0.7318]
[1756803486201,4.08671368,4394.8,4394.7,0.7318]
[1756803489001,4.08671368,4394.8,4394.7,0.231]
[1756803489198,0.3864,4394.2,4394.1,0.59568464]
[1756803489393,0.679,4394.2,4394.1,0.82668464]
[1756803489804,0.679,4394.2,4394.1,1.02018464]
[1756803490001,3.2078,4394.8,4394.6,0.6845]
[1756803490002,0.679,4394.7,4394.6,0.6845]
[1756803490201,0.86325386,4394.7,4394.6,0.6845]
[1756803493506,0.86325386,4394.7,4394.6,0.1961]
[1756803493705,0.86325386,4394.7,4394.6,0.491]
[1756803495004,0.86325386,4394.7,4394.6,0.1961]
[1756803496408,0.86325386,4394.7,4394.2,0.2949]
[1756803496599,0.679,4394.3,4394.2,0.491]
[1756803496800,0.86325386,4394.3,4394.2,0.6845]
[1756803497702,0.57065386,4394.3,4394.2,0.6845]
[1756803498112,0.86325386,4394.3,4394.2,0.6845]
[1756803500113,0.679,4394.3,4394.2,0.6845]
[1756803500314,0.8636297,4394.3,4394.2,0.6845]
[1756803500817,0.1846297,4394.3,4394.2,0.6845]
[1756803504815,0.5710297,4394.3,4394.2,0.491]
[1756803505116,0.5710297,4394.3,4394.2,0.722]
[1756803505518,0.8636297,4394.3,4394.2,0.4271]
[1756803505719,0.8636297,4394.3,4394.2,0.722]
[1756803508821,0.8636297,4394.3,4394.2,0.9155]
[1756803509210,0.5710297,4394.3,4394.2,0.9155]
[1756803510117,0.8636297,4394.3,4394.2,0.9155]
[1756803510921,0.679,4394.3,4394.2,0.9155]
[1756803511220,0.86367416,4394.3,4394.2,0.9155]
[1756803512123,0.86367416,4394.3,4394.2,0.6845]
[1756803512310,0.86367416,4394.3,4394.2,0.9155]
[1756803514225,0.86367416,4394.3,4394.2,0.722]
[1756803514523,0.86367416,4394.3,4394.2,0.9155]
[1756803518219,0.86300682,4394.3,4394.2,0.9155]
[1756803520127,0.38140682,4394.3,4394.2,0.9155]
[1756803520425,0.18400682,4394.3,4394.2,0.9155]
[1756803521829,0.18399874,4394.3,4394.2,1.32509]
[1756803522529,0.18399874,4394.3,4394.2,42.12509]
[1756803525426,0.18399874,4394.3,4394.2,41.7155]
[1756803526034,0.48329874,4394.3,4394.2,41.7155]
[1756803526434,0.18399874,4394.3,4394.2,41.7155]
[1756803528638,0.48329874,4394.3,4394.2,41.7155]
[1756803529828,0.18399874,4394.3,4394.2,41.7155]
[1756803530835,0.18399874,4394.3,4394.2,42.12509]
[1756803531042,0.18399874,4394.3,4394.2,41.7155]
[1756803532337,0.18404181,4394.3,4394.2,41.7155]
[1756803532531,0.18404181,4394.3,4394.2,41.7276]
[1756803533338,0.18404228,4394.3,4394.2,41.4206]
[1756803533744,0.6957,4394.7,4394.6,0.1933]
[1756803534045,0.8797469,4394.7,4394.6,0.7313]
[1756803536843,0.8797469,4394.7,4394.6,0.9351]
[1756803537943,0.8797469,4394.7,4394.6,41.7351]
[1756803539637,0.1840469,4394.7,4394.6,41.7351]
[1756803540038,0.2993,4396.5,4395.8,0.3971]
[1756803540347,0.6957,4396.4,4396.3,0.5003]
[1756803540549,0.6957,4396.4,4396.3,0.231]
[1756803540744,4.6957,4396.4,4396.3,0.231]
[1756803542847,4.6957,4396.4,4395.9,0.307]
[1756803543149,3.9035,4396.1,4396.0,0.231]
[1756803543943,3.6042,4396.1,4396.0,0.231]
[1756803544244,3.9035,4396.1,4396.0,0.231]
[1756803550449,3.9035,4396.1,4395.8,0.231]
[1756803550646,0.124,4396.0,4395.7,0.231]
[1756803550840,0.6807,4395.8,4395.7,0.231]
[1756803554450,0.6807,4395.8,4395.3,0.3024]
[1756803554856,0.2879,4395.7,4395.0,0.3024]
[1756803555052,0.6807,4395.1,4395.0,0.5031]
[1756803555253,0.6807,4395.1,4395.0,0.7341]
[1756803555552,0.6807,4395.1,4395.0,0.231]
[1756803558056,0.6807,4395.1,4394.9,0.231]
[1756803558960,3.8885,4395.1,4394.9,0.231]
[1756803560461,0.2879,4395.0,4394.9,0.5334]
[1756803560759,0.6807,4395.0,4394.9,0.5334]
[1756803561060,0.6807,4395.0,4394.9,0.231]
[1756803561660,0.6807,4395.0,4394.9,0.7341]
[1756803562165,0.6807,4395.0,4394.9,0.5031]
[1756803562461,0.6807,4395.0,4394.9,0.9291]
[1756803563362,0.1951,4395.0,4394.9,0.9291]
[1756803563958,0.483,4395.0,4394.9,0.9291]
[1756803564554,0.6807,4395.0,4394.9,0.9291]
[1756803564762,0.2879,4394.9,4394.2,0.3024]
[1756803564961,0.6807,4394.9,4394.8,0.5031]
[1756803565158,0.6807,4394.9,4394.8,0.9291]
[1756803567465,0.6807,4394.9,4394.8,0.7341]
[1756803568365,0.6807,4394.9,4394.8,0.5031]
[1756803568564,0.6807,4394.9,4394.8,0.7341]
[1756803568955,0.6807,4394.9,4394.8,0.5031]
[1756803569263,0.6807,4394.9,4394.8,0.7341]
[1756803570562,0.6807,4394.9,4394.8,0.231]
[1756803570763,0.6807,4394.9,4394.8,0.7341]
[1756803571370,0.6807,4394.9,4394.8,0.9291]
[1756803574670,0.2879,4394.8,4394.4,0.3024]
[1756803574871,0.1951,4394.6,4394.5,0.9291]
[1756803576174,0.2879,4394.8,4394.5,0.9291]
[1756803576373,0.483,4394.8,4394.7,0.3957]
[1756803576672,0.1951,4394.8,4394.7,0.6981]
[1756803577075,0.1951,4394.9,4394.8,0.3024]
[1756803577368,0.483,4394.9,4394.8,0.9291]
[1756803577674,0.6807,4394.9,4394.8,0.9291]
[1756803577874,0.86447672,4394.9,4394.8,0.9291]
[1756803582277,0.37887672,4394.9,4394.8,0.9291]
[1756803582877,0.18377672,4394.9,4394.8,0.9291]
[1756803584371,0.1840319,4394.9,4394.8,0.6267]
[1756803584571,0.3068,4394.8,4394.3,40.8]
[1756803584779,0.4998,4394.8,4394.7,0.415]
[1756803585082,0.68383355,4394.8,4394.7,0.7012]
[1756803585380,0.37703355,4394.8,4394.7,0.7012]
[1756803586581,0.68383355,4394.8,4394.7,0.7012]
[1756803587673,0.37703355,4394.8,4394.7,0.7012]
[1756803589874,0.37703355,4394.8,4394.7,0.9322]
[1756803590277,0.68383355,4394.8,4394.7,0.9322]
[1756803590477,0.18403355,4394.8,4394.7,0.9322]
[1756803592883,0.18403355,4394.8,4394.7,5.15974]
[1756803593185,3.9119,4395.7,4395.6,0.7012]
[1756803593382,4.09594569,4395.7,4395.6,0.231]
[1756803594288,4.09594569,4395.7,4395.5,0.231]
[1756803594491,0.7041,4395.5,4395.4,0.231]
[1756803594787,0.88814569,4395.5,4395.4,0.231]
[1756803595392,0.88814569,4395.5,4395.2,0.2862]
[1756803595581,0.18402629,4395.4,4395.3,0.231]
[1756803595781,0.58132629,4395.4,4394.5,0.2862]
[1756803595985,0.3973,4394.6,4394.5,0.7012]
[1756803596190,0.88812197,4394.6,4394.5,0.9322]
[1756803597092,0.88812197,4394.6,4394.5,0.96345]
[1756803597895,0.1142,4394.5,4394.1,0.10468464]
[1756803598082,0.1142,4394.5,4393.9,2.02732747]
[1756803598083,0.0913,4394.0,4393.9,2.02732747]
[1756803598283,0.3973,4393.2,4393.1,0.7012]
[1756803598484,0.58132197,4393.2,4393.1,0.7012]
[1756803598692,0.37702197,4393.2,4393.1,0.7012]
[1756803598887,0.18402197,4393.2,4393.1,0.7012]
[1756803599188,0.18387293,4393.2,4393.1,0.7012]
[1756803599785,0.37687293,4393.2,4393.1,0.7012]
[1756803600588,0.18387293,4393.2,4393.1,0.7012]
[1756803600784,3.2078,4393.8,4393.7,0.415]
[1756803600988,3.2078,4393.8,4393.7,0.9322]
[1756803601896,0.4205,4394.2,4393.7,0.9322]
[1756803602092,0.1137,4394.2,4394.1,0.415]
[1756803602396,0.1137,4394.2,4394.1,0.9322]
[1756803603192,0.3067,4394.2,4394.1,0.9322]
[1756803603492,0.8178,4394.2,4394.1,0.9322]
[1756803603694,0.8178,4394.2,4394.1,0.4398]
[1756803604196,0.8178,4394.2,4394.1,0.726]
[1756803605090,0.8178,4394.2,4394.1,0.231]
[1756803605700,0.8178,4394.2,4394.1,0.4398]
[1756803607298,0.8178,4394.2,4394.1,0.9322]
[1756803608100,0.1137,4394.2,4394.1,0.9322]
[1756803613204,0.8025,4394.2,4394.1,0.2088]
[1756803613400,0.8025,4394.2,4394.1,0.7172]
[1756803616512,0.6888,4394.2,4394.1,0.7172]
[1756803619614,3.3215,4394.4,4393.3,0.702]
[1756803619815,3.3215,4394.4,4393.7,0.702]
[1756803619816,0.4959,4393.8,4393.7,0.702]
[1756803620213,0.6888,4393.8,4393.7,0.702]
[1756803620814,0.1979,4393.8,4393.7,0.702]
[1756803621318,3.2078,4393.9,4393.7,0.3887]
[1756803621619,3.2078,4393.9,4393.8,0.933]
[1756803621818,3.4057,4393.9,4393.8,0.933]
[1756803622016,3.7037,4393.9,4393.8,0.933]
[1756803622411,3.8966,4393.9,4393.8,0.3133]
[1756803622613,3.8966,4393.9,4392.8,5.23512747]
[1756803622614,0.4959,4392.9,4392.8,0.702]
[1756803622812,0.4959,4392.9,4392.8,0.933]
[1756803624014,0.298,4393.8,4392.9,0.3133]
[1756803624719,0.6888,4393.8,4393.7,0.702]
[1756803624921,0.6888,4393.8,4393.7,0.934]
[1756803625429,0.6888,4393.8,4393.7,0.232]
[1756803625624,0.298,4393.7,4392.9,0.3133]
[1756803625818,0.298,4393.7,4393.1,0.3133]
[1756803626018,0.1979,4393.2,4393.1,0.702]
[1756803627525,0.6888,4393.2,4393.1,0.934]
[1756803629326,0.6888,4393.2,4393.1,0.702]
[1756803629527,0.6888,4393.2,4393.1,0.934]
[1756803629724,0.6888,4391.8,4391.0,0.3133]
[1756803630027,0.6888,4391.8,4391.7,0.7389]
[1756803630427,0.298,4391.7,4391.2,0.3133]
[1756803630624,0.3908,4391.4,4391.3,0.4256]
[1756803630929,0.6888,4391.4,4391.3,0.4256]
[1756803631123,0.6888,4391.4,4391.3,0.5069]
[1756803631325,0.1138,4391.6,4391.5,0.3887]
[1756803631528,0.3117,4391.6,4391.5,0.702]
[1756803631729,0.8026,4391.6,4391.5,0.702]
[1756803632524,0.1138,4391.6,4391.5,0.702]
[1756803632726,0.1138,4391.6,4391.5,0.8233]
[1756803633430,0.1138,4391.6,4391.5,1.0563]